fUSD/lending_fUSD_20240526
["ID","MTS","AMOUNT","RATE_DAILY","PERIOD"]
[327973831,1716732667595,-500.0,0.00028493,4]
[327973832,1716732667605,-500.0,0.00028493,4]
[327973833,1716732667615,-867.51,0.00028493,4]
[327973834,1716732667624,-500.0,0.00028493,4]
[327973835,1716732667634,-293.03788509,0.00028493,4]
[327973836,1716732667644,-500.0,0.00028493,4]
[327973837,1716732667653,-471.37212049,0.00028493,4]
[327973838,1716732667664,-199.32293291,0.00028493,4]
[327973839,1716732667674,-151.0,0.00028493,7]
[327973840,1716732667683,-500.0,0.00028493,4]
[327973841,1716732667693,-613.37,0.00028493,4]
[327973842,1716732667703,-500.0,0.00028493,4]
[327973843,1716732667713,-500.0,0.00028493,4]
[327973844,1716732667723,-689.25,0.00028493,4]
[327973845,1716732667899,-912.17,0.00028493,4]
[327973846,1716732667919,-273.23324969,0.00028493,4]
[327973847,1716732667929,-500.0,0.00028493,4]
[327973848,1716732667939,-577.1,0.00028493,4]
[327973849,1716732667949,-500.0,0.00028493,4]
[327973850,1716732667958,-500.0,0.00028493,4]
[327973851,1716732667968,-500.0,0.00028493,4]
[327973852,1716732667977,-500.0,0.00028493,4]
[327973853,1716732667986,-3083.08,0.00028493,4]
[327973854,1716732667996,-500.0,0.00028493,4]
[327973855,1716732668005,-500.0,0.00028493,4]
[327973856,1716732668015,-691.79,0.00028493,4]
[327973857,1716732668024,-500.0,0.00028493,4]
[327973858,1716732668034,-386.66593297,0.00028493,4]
[327973859,1716732668043,-500.0,0.00028493,4]
[327973860,1716732668053,-1003.57,0.00028493,4]
[327973861,1716732668062,-702.93,0.00028493,4]
[327973862,1716732668073,-500.0,0.00028493,4]
[327973863,1716732668084,-500.0,0.00028493,4]
[327973864,1716732668095,-500.0,0.00028493,4]
[327973865,1716732668105,-500.0,0.00028493,4]
[327973866,1716732668115,-900.58,0.00028493,4]
[327973867,1716732668125,-500.0,0.00028493,4]
[327973868,1716732668137,-891.34,0.00028493,4]
[327973869,1716732668147,-838.16,0.00028493,2]
[327973870,1716732668157,-500.0,0.00028493,4]
[327973871,1716732668167,-500.0,0.00028493,4]
[327973872,1716732668177,-500.0,0.00028493,2]
[327973873,1716732668187,-615.98,0.00028493,4]
[327973874,1716732668197,-576.75,0.00028493,4]
[327973875,1716732668209,-500.0,0.00028493,4]
[327973876,1716732668219,-767.17,0.00028493,4]
[327973877,1716732668231,-601.46723252,0.00028493,4]
[327973878,1716732668241,-500.0,0.00028493,4]
[327973879,1716732668250,-500.0,0.00028493,4]
[327973880,1716732668260,-500.0,0.00028493,4]
[327973881,1716732668270,-633.88,0.00028493,4]
[327973882,1716732668280,-570.99979357,0.00028493,4]
[327973883,1716732668289,-500.0,0.00028493,4]
[327973884,1716732668298,-758.6,0.00028493,4]
[327973885,1716732668308,-1363.1,0.00028493,4]
[327973886,1716732668317,-500.0,0.00028493,4]
[327973887,1716732668326,-500.0,0.00028493,4]
[327973888,1716732668336,-500.0,0.00028493,4]
[327973889,1716732668345,-535.29,0.00028493,4]
[327973890,1716732668355,-500.0,0.00028493,4]
[327973891,1716732668364,-500.0,0.00028493,4]
[327973892,1716732668373,-500.0,0.00028493,4]
[327973893,1716732668383,-596.76,0.00028493,4]
[327973894,1716732668392,-500.0,0.00028493,4]
[327973895,1716732668401,-500.0,0.00028493,4]
[327973896,1716732668411,-151.0,0.00028493,7]
[327973897,1716732668420,-500.0,0.00028493,4]
[327973898,1716732668430,-500.0,0.00028493,4]
[327973899,1716732668439,-500.0,0.00028493,4]
[327973900,1716732668449,-500.0,0.00028493,4]
[327973901,1716732668461,-500.0,0.00028493,4]
[327973902,1716732668472,-500.0,0.00028493,4]
[327973903,1716732668484,-500.0,0.00028493,4]
[327973904,1716732668494,-500.0,0.00028493,4]
[327973905,1716732668505,-500.0,0.00028493,4]
[327973906,1716732668515,-500.0,0.00028493,4]
[327973907,1716732668524,-638.58,0.00028493,4]
[327973908,1716732668533,-500.0,0.00028493,4]
[327973909,1716732668544,-500.0,0.00028493,4]
[327973910,1716732668554,-537.02289539,0.00028493,4]
[327973911,1716732668564,-500.0,0.00028493,4]
[327973912,1716732668573,-500.0,0.00028493,4]
[327973913,1716732668582,-500.0,0.00028493,4]
[327973914,1716732668592,-813.06,0.00028493,4]
[327973915,1716732668601,-676.35,0.00028493,4]
[327973916,1716732668611,-374.63184225,0.00028493,4]
[327973917,1716732668620,-1206.79,0.00028493,4]
[327973918,1716732668630,-182.82067287,0.00028493,4]
[327973919,1716732668640,-539.50171637,0.00028493,4]
[327973920,1716732668650,-500.0,0.00028493,4]
[327973921,1716732668660,-500.0,0.00028493,4]
[327973922,1716732668671,-758.9,0.00028493,4]
[327973923,1716732668680,-500.0,0.00028493,4]
[327973924,1716732668690,-500.0,0.00028493,4]
[327973925,1716732668700,-414.09154935,0.00028493,4]
[327973926,1716732668709,-500.0,0.00028493,4]
[327973927,1716732668719,-500.0,0.00028493,4]
[327973928,1716732668728,-500.0,0.00028493,4]
[327973929,1716732668738,-500.0,0.00028493,4]
[327973930,1716732668748,-544.35,0.00028493,2]
[327973931,1716732668758,-500.0,0.00028493,4]
[327973932,1716732668768,-500.0,0.00028493,4]
[327973933,1716732668778,-500.0,0.00028493,4]
[327973934,1716732668790,-500.0,0.00028493,4]
[327973935,1716732668800,-500.0,0.00028493,4]
[327973936,1716732668809,-500.0,0.00028493,4]
[327973937,1716732668819,-500.0,0.00028493,4]
[327973938,1716732668831,-151.0,0.00028493,7]
[327973939,1716732668842,-607.01,0.00028493,4]
[327973940,1716732668851,-500.0,0.00028493,4]
[327973941,1716732668861,-500.0,0.00028493,4]
[327973942,1716732668871,-869.48,0.00028493,4]
[327973943,1716732668882,-500.0,0.00028493,4]
[327973944,1716732668892,-500.0,0.00028493,4]
[327973945,1716732668902,-598.19,0.00028493,4]
[327973946,1716732668914,-500.0,0.00028493,4]
[327973947,1716732668923,-500.0,0.00028493,4]
[327973948,1716732668932,-500.0,0.00028493,4]
[327973949,1716732668941,-500.0,0.00028493,4]
[327973950,1716732668951,-501.39,0.00028493,4]
[327973951,1716732668960,-565.06,0.00028493,4]
[327973952,1716732668970,-500.0,0.00028493,4]
[327973953,1716732668980,-536.08,0.00028493,4]
[327973954,1716732668989,-500.0,0.00028493,4]
[327973955,1716732668998,-500.0,0.00028493,4]
[327973956,1716732669007,-288.6618903,0.00028493,4]
[327973957,1716732669018,-500.0,0.00028493,4]
[327973958,1716732669028,-500.0,0.00028493,4]
[327973959,1716732669037,-500.0,0.00028493,4]
[327973960,1716732669047,-500.0,0.00028493,4]
[327973961,1716732669056,-500.0,0.00028493,4]
[327973962,1716732669066,-500.0,0.00028493,4]
[327973963,1716732669075,-500.0,0.00028493,4]
[327973964,1716732669084,-500.0,0.00028493,4]
[327973965,1716732669094,-500.0,0.00028493,4]
[327973966,1716732669104,-500.0,0.00028493,4]
[327973967,1716732669113,-500.0,0.00028493,4]
[327973968,1716732669123,-364.06481583,0.00028493,4]
[327973969,1716732669133,-500.0,0.00028493,4]
[327973970,1716732669143,-500.0,0.00028493,4]
[327973971,1716732669152,-500.0,0.00028493,4]
[327973972,1716732669162,-500.0,0.00028493,4]
[327973973,1716732669171,-500.0,0.00028493,4]
[327973974,1716732669181,-575.01,0.00028493,4]
[327973975,1716732669191,-500.0,0.00028493,4]
[327973976,1716732669200,-500.0,0.00028493,4]
[327973977,1716732669210,-500.0,0.00028493,4]
[327973978,1716732669219,-168.687401,0.00028493,7]
[327973979,1716732669228,-500.0,0.00028493,4]
[327973980,1716732669238,-500.0,0.00028493,4]
[327973981,1716732669247,-179.19,0.00028493,4]
[327973982,1716732669257,-664.28,0.00028493,4]
[327973983,1716732669267,-349.20159793,0.00028493,4]
[327973984,1716732669276,-193.036136,0.00028493,7]
[327973985,1716732669286,-500.0,0.00028493,4]
[327973986,1716732669295,-193.036136,0.00028493,7]
[327973987,1716732669305,-500.0,0.00028493,4]
[327973988,1716732669315,-500.0,0.00028493,4]
[327973989,1716732669324,-500.0,0.00028493,4]
[327973990,1716732669334,-1420.49,0.00028493,4]
[327973991,1716732669344,-500.0,0.00028493,4]
[327973992,1716732669353,-500.0,0.00028493,4]
[327973993,1716732669363,-544.29564612,0.00028493,4]
[327973994,1716732669372,-500.0,0.00028493,4]
[327973995,1716732669382,-500.0,0.00028493,4]
[327973996,1716732669392,-911.95,0.00028493,4]
[327973997,1716732669402,-876.64,0.00028493,4]
[327973998,1716732669411,-532.91,0.00028493,4]
[327973999,1716732669421,-845.02,0.00028493,4]
[327974000,1716732669430,-500.0,0.00028493,4]
[327974001,1716732669440,-1217.15,0.00028493,4]
[327974002,1716732669449,-500.0,0.00028493,4]
[327974003,1716732669464,-151.0,0.00028493,7]
[327974004,1716732669474,-500.0,0.00028493,4]
[327974005,1716732669483,-500.0,0.00028493,4]
[327974006,1716732669492,-500.0,0.00028493,4]
[327974007,1716732669503,-500.0,0.00028493,4]
[327974008,1716732669513,-1573.33,0.00028493,4]
[327974009,1716732669522,-500.0,0.00028493,4]
[327974010,1716732669532,-151.0,0.00028493,7]
[327974011,1716732669543,-1943.35,0.00028493,4]
[327974012,1716732669552,-647.0,0.00028493,4]
[327974013,1716732669562,-500.0,0.00028493,4]
[327974014,1716732669571,-827.18,0.00028493,4]
[327974015,1716732669581,-525.9,0.00028493,4]
[327974016,1716732669590,-1647.19,0.00028493,4]
[327974017,1716732669600,-812.79,0.00028493,4]
[327974018,1716732669609,-312.0417796,0.00028493,4]
[327974019,1716732669619,-656.92,0.00028493,4]
[327974020,1716732669629,-1479.16,0.00028493,4]
[327974021,1716732669639,-500.0,0.00028493,4]
[327974022,1716732669648,-859.25,0.00028493,4]
[327974023,1716732669657,-500.0,0.00028493,4]
[327974024,1716732669668,-705.7,0.00028493,4]
[327974025,1716732669678,-500.0,0.00028493,4]
[327974026,1716732669687,-524.26,0.00028493,4]
[327974027,1716732669697,-852.83,0.00028493,4]
[327974028,1716732669706,-792.18,0.00028493,4]
[327974029,1716732669716,-9047.47,0.00028493,4]
[327974030,1716732669725,-2563.75,0.00028493,4]
[327974031,1716732669735,-500.0,0.00028493,4]
[327974032,1716732669744,-500.0,0.00028493,4]
[327974033,1716732669755,-543.61,0.00028493,4]
[327974034,1716732669765,-657.54,0.00028493,4]
[327974035,1716732669775,-937.7,0.00028493,4]
[327974036,1716732669784,-1533.52,0.00028493,4]
[327974037,1716732669794,-782.0,0.00028493,4]
[327974038,1716732669803,-1870.6,0.00028493,4]
[327974039,1716732669812,-500.0,0.00028493,4]
[327974040,1716732669822,-523.58,0.00028493,4]
[327974041,1716732669831,-500.0,0.00028493,4]
[327974042,1716732669840,-611.87,0.00028493,4]
[327974043,1716732669851,-662.47,0.00028493,4]
[327974044,1716732669860,-709.98,0.00028493,4]
[327974045,1716732669870,-500.0,0.00028493,4]
[327974046,1716732669879,-500.0,0.00028493,4]
[327974047,1716732669889,-500.0,0.00028493,4]
[327974048,1716732669899,-739.81,0.00028493,4]
[327974049,1716732669909,-6199.76,0.00028493,4]
[327974050,1716732669919,-151.0,0.00028493,7]
[327974051,1716732669929,-500.0,0.00028493,4]
[327974052,1716732669938,-724.86,0.00028493,4]
[327974053,1716732669948,-1320.63,0.00028493,4]
[327974054,1716732669957,-252.60150321,0.00028493,4]
[327974055,1716732669967,-500.0,0.00028493,4]
[327974056,1716732669975,-500.0,0.00028493,4]
[327974057,1716732669985,-852.95,0.00028493,4]
[327974058,1716732669994,-500.0,0.00028493,4]
[327974059,1716732670004,-2564.82,0.00028493,4]
[327974060,1716732670013,-818.52,0.00028493,4]
[327974061,1716732670024,-571.73,0.00028493,4]
[327974062,1716732670033,-2538.12,0.00028493,4]
[327974063,1716732670042,-500.0,0.00028493,4]
[327974064,1716732670051,-598.56,0.00028493,4]
[327974065,1716732670061,-500.0,0.00028493,4]
[327974066,1716732670071,-2937.07,0.00028493,4]
[327974067,1716732670080,-1041.17,0.00028493,4]
[327974068,1716732670089,-500.0,0.00028493,4]
[327974069,1716732670099,-500.0,0.00028493,4]
[327974070,1716732670108,-656.51,0.00028493,4]
[327974071,1716732670118,-500.0,0.00028493,4]
[327974072,1716732670127,-1310.5,0.00028493,4]
[327974073,1716732670137,-500.0,0.00028493,4]
[327974074,1716732670147,-552.73,0.00028493,4]
[327974075,1716732670156,-967.98,0.00028493,4]
[327974076,1716732670167,-500.0,0.00028493,4]
[327974077,1716732670176,-500.0,0.00028493,4]
[327974078,1716732670185,-1148.48,0.00028493,4]
[327974079,1716732670194,-795.96,0.00028493,4]
[327974080,1716732670203,-678.18,0.00028493,4]
[327974081,1716732670213,-500.0,0.00028493,4]
[327974082,1716732670222,-576.35,0.00028493,4]
[327974083,1716732670232,-500.0,0.00028493,4]
[327974084,1716732670242,-585.71,0.00028493,4]
[327974085,1716732670251,-606.32,0.00028493,4]
[327974086,1716732670260,-1027.88,0.00028493,4]
[327974087,1716732670270,-2390.71,0.00028493,4]
[327974088,1716732670280,-500.0,0.00028493,4]
[327974089,1716732670289,-720.94,0.00028493,4]
[327974090,1716732670298,-884.01,0.00028493,4]
[327974091,1716732670365,-151.0,0.00028493,7]
[327974092,1716732670375,-371.37065,0.00028493,7]
[327974093,1716732670384,-856.1063,0.00028493,7]
[327974094,1716732670393,-571.26,0.00028493,4]
[327974095,1716732670403,-1408.04,0.00028493,4]
[327974096,1716732670412,-371.37065,0.00028493,7]
[327974097,1716732670423,-500.0,0.00028493,4]
[327974098,1716732670432,-500.0,0.00028493,4]
[327974099,1716732670441,-500.0,0.00028493,4]
[327974100,1716732670451,-856.1063,0.00028493,7]
[327974101,1716732670465,-500.0,0.00028493,4]
[327974102,1716732670475,-1268.26,0.00028493,4]
[327974103,1716732670484,-1085.42,0.00028493,4]
[327974104,1716732670494,-8694.34,0.00028493,4]
[327974105,1716732670504,-500.0,0.00028493,4]
[327974106,1716732670515,-1268.05,0.00028493,4]
[327974107,1716732670525,-1448.06,0.00028493,4]
[327974108,1716732670534,-972.62,0.00028493,4]
[327974109,1716732670547,-500.0,0.00028493,4]
[327974110,1716732670556,-3904.28,0.00028493,4]
[327974111,1716732670566,-573.16,0.00028493,4]
[327974112,1716732670575,-914.87,0.00028493,4]
[327974113,1716732670584,-1089.59,0.00028493,4]
[327974114,1716732670593,-500.0,0.00028493,4]
[327974115,1716732670602,-500.0,0.00028493,4]
[327974116,1716732670611,-885.34,0.00028493,4]
[327974117,1716732670621,-151.0,0.00028493,7]
[327974118,1716732670630,-500.0,0.00028493,4]
[327974119,1716732670639,-591.51,0.00028493,4]
[327974120,1716732670648,-500.0,0.00028493,4]
[327974121,1716732670657,-1079.94,0.00028493,4]
[327974122,1716732670667,-879.76,0.00028493,4]
[327974123,1716732670676,-1841.81,0.00028493,4]
[327974124,1716732670685,-500.0,0.00028493,4]
[327974125,1716732670695,-1638.97,0.00028493,4]
[327974126,1716732670705,-395.94874569,0.00028493,4]
[327974127,1716732670715,-625.43,0.00028493,4]
[327974128,1716732670724,-1077.58,0.00028493,4]
[327974129,1716732670733,-500.0,0.00028493,4]
[327974130,1716732670743,-710.46,0.00028493,4]
[327974131,1716732670752,-647.72,0.00028493,4]
[327974132,1716732670761,-568.85,0.00028493,4]
[327974133,1716732670771,-678.18,0.00028493,4]
[327974134,1716732670780,-869.84,0.00028493,4]
[327974135,1716732670789,-500.0,0.00028493,4]
[327974136,1716732670799,-500.0,0.00028493,4]
[327974137,1716732670808,-717.42,0.00028493,4]
[327974138,1716732670817,-576.0,0.00028493,4]
[327974139,1716732670828,-1137.45,0.00028493,4]
[327974140,1716732670837,-500.0,0.00028493,4]
[327974141,1716732670847,-501.98899001,0.00028493,4]
[327974142,1716732670856,-151.0,0.00028493,7]
[327974143,1716732670866,-500.0,0.00028493,4]
[327974144,1716732670876,-500.0,0.00028493,4]
[327974145,1716732670885,-500.0,0.00028493,4]
[327974146,1716732670895,-1101.55,0.00028493,4]
[327974147,1716732670904,-623.77,0.00028493,4]
[327974148,1716732670913,-504.89,0.00028493,4]
[327974149,1716732670923,-570.33,0.00028493,4]
[327974150,1716732670933,-853.64,0.00028493,4]
[327974151,1716732670943,-500.0,0.00028493,4]
[327974152,1716732670952,-1592.22,0.00028493,4]
[327974153,1716732670962,-1027.97,0.00028493,4]
[327974154,1716732670971,-1044.37,0.00028493,4]
[327974155,1716732670980,-500.0,0.00028493,4]
[327974156,1716732670991,-500.0,0.00028493,4]
[327974157,1716732671001,-500.0,0.00028493,4]
[327974158,1716732671010,-1313.69,0.00028493,4]
[327974159,1716732671019,-624.18,0.00028493,4]
[327974160,1716732671030,-1190.26,0.00028493,4]
[327974161,1716732671039,-4137.91,0.00028493,4]
[327974162,1716732671048,-1036.79,0.00028493,4]
[327974163,1716732671058,-500.0,0.00028493,4]
[327974164,1716732671067,-500.0,0.00028493,4]
[327974165,1716732671076,-850.51,0.00028493,4]
[327974166,1716732671087,-500.0,0.00028493,4]
[327974167,1716732671096,-916.61,0.00028493,4]
[327974168,1716732671105,-1474.98,0.00028493,4]
[327974169,1716732671114,-707.12,0.00028493,4]
[327974170,1716732671123,-500.0,0.00028493,4]
[327974171,1716732671132,-151.0,0.00028493,7]
[327974172,1716732671142,-284.76806806,0.00028493,4]
[327974173,1716732671151,-2412.83,0.00028493,4]
[327974174,1716732671160,-500.0,0.00028493,4]
[327974175,1716732671169,-500.0,0.00028493,4]
[327974176,1716732671178,-500.0,0.00028493,4]
[327974177,1716732671188,-687.58,0.00028493,4]
[327974178,1716732671197,-1038.84,0.00028493,4]
[327974179,1716732671207,-500.0,0.00028493,2]
[327974180,1716732671216,-500.0,0.00028493,4]
[327974181,1716732671226,-500.0,0.00028493,4]
[327974182,1716732671236,-928.91,0.00028493,4]
[327974183,1716732671245,-654.73,0.00028493,4]
[327974184,1716732671254,-500.0,0.00028493,4]
[327974185,1716732671264,-592.19,0.00028493,4]
[327974186,1716732671273,-502.52,0.00028493,4]
[327974187,1716732671282,-500.0,0.00028493,4]
[327974188,1716732671291,-500.0,0.00028493,4]
[327974189,1716732671301,-500.0,0.00028493,4]
[327974191,1716732671310,-1244.5,0.00028493,4]
[327974192,1716732671320,-901.87,0.00028493,4]
[327974193,1716732671329,-586.69,0.00028493,4]
[327974194,1716732671338,-827.03,0.00028493,4]
[327974195,1716732671348,-793.2,0.00028493,4]
[327974196,1716732671357,-501.48,0.00028493,4]
[327974197,1716732671366,-709.61,0.00028493,4]
[327974198,1716732671375,-179.01,0.00028493,2]
[327974199,1716732671384,-882654.14346252,0.000285,5]
[327974200,1716732671393,-151.0,0.000285,7]
[327974201,1716732671403,-151.0,0.000285,7]
[327974202,1716732671411,-151.0,0.000285,7]
[327974203,1716732671421,-193.036136,0.000285,7]
[327974204,1716732671430,-193.036136,0.000285,7]
[327974205,1716732671440,-151.0,0.000285,7]
[327974206,1716732671449,-151.0,0.000285,7]
[327974207,1716732671459,-151.0,0.000285,7]
[327974208,1716732671472,-151.0,0.000285,7]
[327974209,1716732671481,-371.37065,0.000285,7]
[327974210,1716732671491,-856.1063,0.000285,7]
[327974211,1716732671501,-371.37065,0.000285,7]
[327974212,1716732671511,-856.1063,0.000285,7]
[327974213,1716732671520,-151.0,0.000285,7]
[327974214,1716732671529,-151.0,0.000285,7]
[327974215,1716732671540,-300.0,0.00028571,2]
[327974216,1716732671549,-152.08174936,0.00028637,2]
[327974217,1716732671559,-168.886399,0.00028644,2]
[327974218,1716732671569,-2100.0,0.00028654,2]
[327974219,1716732671578,-796.37,0.000287,2]
[327974220,1716732671586,-153.31773316,0.00028736,2]
[327974221,1716732671598,-551.197367,0.0002876,2]
[327974222,1716732671607,-420.524747,0.0002876,2]
[327974223,1716732671617,-236.330708,0.0002876,2]
[327974224,1716732671626,-500.0,0.00028767,4]
[327974225,1716732671635,-500.0,0.00028767,4]
[327974226,1716732671645,-500.0,0.00028767,4]
[327974227,1716732671656,-500.0,0.00028767,4]
[327974228,1716732671667,-500.0,0.00028767,4]
[327974229,1716732671676,-500.0,0.00028767,4]
[327974230,1716732671684,-867.51,0.00028767,4]
[327974231,1716732671694,-500.0,0.00028767,4]
[327974232,1716732671704,-500.0,0.00028767,4]
[327974233,1716732671715,-500.0,0.00028767,4]
[327974234,1716732671723,-613.37,0.00028767,4]
[327974235,1716732671732,-500.0,0.00028767,4]
[327974236,1716732671742,-500.0,0.00028767,4]
[327974237,1716732671751,-689.25,0.00028767,4]
[327974238,1716732671760,-912.17,0.00028767,4]
[327974239,1716732671770,-500.0,0.00028767,4]
[327974240,1716732671782,-577.1,0.00028767,4]
[327974241,1716732671791,-500.0,0.00028767,4]
[327974242,1716732671801,-500.0,0.00028767,4]
[327974243,1716732671810,-500.0,0.00028767,4]
[327974244,1716732671821,-500.0,0.00028767,4]
[327974245,1716732671829,-3083.08,0.00028767,4]
[327974246,1716732671839,-500.0,0.00028767,4]
[327974247,1716732671848,-500.0,0.00028767,4]
[327974248,1716732671857,-691.79,0.00028767,4]
[327974249,1716732671866,-500.0,0.00028767,4]
[327974250,1716732671876,-500.0,0.00028767,4]
[327974251,1716732671885,-1003.57,0.00028767,4]
[327974252,1716732671895,-702.93,0.00028767,4]
[327974253,1716732671904,-500.0,0.00028767,4]
[327974254,1716732671913,-500.0,0.00028767,4]
[327974255,1716732671923,-500.0,0.00028767,4]
[327974256,1716732671932,-500.0,0.00028767,4]
[327974257,1716732671942,-900.58,0.00028767,4]
[327974258,1716732671952,-500.0,0.00028767,4]
[327974259,1716732671961,-891.34,0.00028767,4]
[327974260,1716732671971,-838.16,0.00028767,2]
[327974261,1716732671979,-500.0,0.00028767,4]
[327974262,1716732671989,-500.0,0.00028767,4]
[327974263,1716732671998,-500.0,0.00028767,2]
[327974264,1716732672007,-576.75,0.00028767,4]
[327974265,1716732672016,-615.98,0.00028767,4]
[327974266,1716732672025,-767.17,0.00028767,4]
[327974267,1716732672034,-500.0,0.00028767,4]
[327974268,1716732672043,-500.0,0.00028767,4]
[327974269,1716732672052,-224.55364761,0.00028767,4]
[327974270,1716732672063,-500.0,0.00028767,4]
[327974271,1716732672073,-633.88,0.00028767,4]
[327974272,1716732672082,-500.0,0.00028767,4]
[327974273,1716732672091,-758.6,0.00028767,4]
[327974274,1716732672101,-1363.1,0.00028767,4]
[327974275,1716732672110,-500.0,0.00028767,4]
[327974276,1716732672119,-500.0,0.00028767,4]
[327974277,1716732672128,-500.0,0.00028767,4]
[327974278,1716732672137,-535.29,0.00028767,4]
[327974279,1716732672146,-500.0,0.00028767,4]
[327974280,1716732672156,-500.0,0.00028767,4]
[327974281,1716732672166,-500.0,0.00028767,4]
[327974282,1716732672176,-596.76,0.00028767,4]
[327974283,1716732672185,-500.0,0.00028767,4]
[327974284,1716732672195,-500.0,0.00028767,4]
[327974285,1716732672205,-500.0,0.00028767,4]
[327974286,1716732672216,-500.0,0.00028767,4]
[327974287,1716732672226,-500.0,0.00028767,4]
[327974288,1716732672235,-500.0,0.00028767,4]
[327974289,1716732672245,-500.0,0.00028767,4]
[327974290,1716732672254,-500.0,0.00028767,4]
[327974291,1716732672265,-500.0,0.00028767,4]
[327974292,1716732672274,-500.0,0.00028767,4]
[327974293,1716732672283,-500.0,0.00028767,4]
[327974294,1716732672292,-376.6610684,0.00028767,4]
[327974295,1716732672301,-638.58,0.00028767,4]
[327974296,1716732672311,-500.0,0.00028767,4]
[327974297,1716732672320,-500.0,0.00028767,4]
[327974298,1716732672328,-500.0,0.00028767,4]
[327974299,1716732672338,-500.0,0.00028767,4]
[327974300,1716732672347,-813.06,0.00028767,4]
[327974301,1716732672356,-676.35,0.00028767,4]
[327974302,1716732672365,-500.0,0.00028767,4]
[327974303,1716732672375,-1206.79,0.00028767,4]
[327974304,1716732672383,-500.0,0.00028767,4]
[327974305,1716732672392,-758.9,0.00028767,4]
[327974306,1716732672401,-500.0,0.00028767,4]
[327974307,1716732672409,-500.0,0.00028767,4]
[327974308,1716732672420,-592.34419285,0.00028767,4]
[327974309,1716732672428,-500.0,0.00028767,4]
[327974310,1716732672437,-500.0,0.00028767,4]
[327974311,1716732672446,-500.0,0.00028767,4]
[327974312,1716732672455,-544.35,0.00028767,2]
[327974313,1716732672469,-500.0,0.00028767,4]
[327974314,1716732672478,-500.0,0.00028767,4]
[327974315,1716732672487,-500.0,0.00028767,4]
[327974316,1716732672495,-500.0,0.00028767,4]
[327974317,1716732672504,-500.0,0.00028767,4]
[327974318,1716732672514,-500.0,0.00028767,4]
[327974319,1716732672523,-500.0,0.00028767,4]
[327974320,1716732672531,-607.01,0.00028767,4]
[327974321,1716732672542,-500.0,0.00028767,4]
[327974322,1716732672551,-500.0,0.00028767,4]
[327974323,1716732672559,-869.48,0.00028767,4]
[327974324,1716732672568,-500.0,0.00028767,4]
[327974325,1716732672577,-500.0,0.00028767,4]
[327974326,1716732672585,-598.19,0.00028767,4]
[327974327,1716732672594,-500.0,0.00028767,4]
[327974328,1716732672603,-500.0,0.00028767,4]
[327974329,1716732672611,-500.0,0.00028767,4]
[327974330,1716732672621,-501.39,0.00028767,4]
[327974331,1716732672630,-500.0,0.00028767,4]